[Event "Early-Titled-Tuesday-Blitz-February-13-2024"]
[Site "Chess.com"]
[Date "2024.02.13"]
[Round "2"]
[White "gau_npukyputb"]
[Black "edgarhay012"]
[Result "1/2-1/2"]
[WhiteElo "2858"]
[BlackElo "2604"]
[TimeControl "180+1"]
[EndTime "8:16:56 PST"]
[Termination "Game drawn by repetition"]

1. g3 {[%clk 0:03:00.9]} 1... d5 {[%clk 0:02:59.8]} 2. Nf3 {[%clk 0:02:56.2]}
2... Nf6 {[%clk 0:02:59]} 3. Bg2 {[%clk 0:02:56.6]} 3... c6 {[%clk 0:02:59.5]}
4. O-O {[%clk 0:02:57.5]} 4... Bf5 {[%clk 0:02:59.8]} 5. d4 {[%clk 0:02:58.4]}
5... e6 {[%clk 0:03:00.4]} 6. c4 {[%clk 0:02:58.9]} 6... Nbd7 {[%clk 0:02:58.7]}
7. Nc3 {[%clk 0:02:59.5]} 7... Be7 {[%clk 0:02:57.8]} 8. Qb3 {[%clk 0:03:00.1]}
8... Qb6 {[%clk 0:02:40.9]} 9. Nd2 {[%clk 0:03:00.2]} 9... O-O {[%clk
0:02:32.5]} 10. e4 {[%clk 0:02:59.7]} 10... dxe4 {[%clk 0:02:30.6]} 11. Ndxe4
{[%clk 0:03:00.6]} 11... Nxe4 {[%clk 0:02:29.9]} 12. Nxe4 {[%clk 0:03:01.5]}
12... Bxe4 {[%clk 0:02:27.8]} 13. Bxe4 {[%clk 0:02:59]} 13... Qxd4 {[%clk
0:02:27.8]} 14. Qxb7 {[%clk 0:02:58.7]} 14... Rab8 {[%clk 0:01:56]} 15. Be3
{[%clk 0:02:38]} 15... Qxe3 {[%clk 0:01:52.1]} 16. Qxd7 {[%clk 0:02:34.1]} 16...
Qxe4 {[%clk 0:01:50.7]} 17. Qxe7 {[%clk 0:02:34.2]} 17... Rxb2 {[%clk
0:01:48.4]} 18. Qxa7 {[%clk 0:02:34.5]} 18... Qxc4 {[%clk 0:01:46.2]} 19. a4
{[%clk 0:02:34.5]} 19... h5 {[%clk 0:01:38]} 20. h4 {[%clk 0:02:32.6]} 20... Rd8
{[%clk 0:01:25.8]} 21. a5 {[%clk 0:02:31.6]} 21... Rd3 {[%clk 0:01:07.5]} 22. a6
{[%clk 0:02:20.1]} 22... Qe4 {[%clk 0:01:07.6]} 23. Kh2 {[%clk 0:02:03.5]} 23...
Rxg3 {[%clk 0:01:05.8]} 24. Kxg3 {[%clk 0:01:50.4]} 24... Qg4+ {[%clk
0:01:04.4]} 25. Kh2 {[%clk 0:01:51]} 25... Qxh4+ {[%clk 0:01:00.7]} 26. Kg2
{[%clk 0:01:51.6]} 26... Qg4+ {[%clk 0:01:01.3]} 27. Kh2 {[%clk 0:01:52.2]}
27... Qh4+ {[%clk 0:00:57.3]} 28. Kg2 {[%clk 0:01:52.4]} 28... Qg4+ {[%clk
0:00:57.7]} 29. Kh2 {[%clk 0:01:52.5]} 29... Qh4+ {[%clk 0:00:58.3]} 1/2-1/2

[Event "Early-Titled-Tuesday-Blitz-February-13-2024"]
[Site "Chess.com"]
[Date "2024.02.13"]
[Round "2"]
[White "inagreV"]
[Black "DreamsAreFake"]
[Result "0-1"]
[WhiteElo "2337"]
[BlackElo "2734"]
[TimeControl "180+1"]
[EndTime "8:17:02 PST"]
[Termination "DreamsAreFake won by resignation"]

1. e4 {[%clk 0:03:00.9]} 1... c6 {[%clk 0:02:56.1]} 2. Nf3 {[%clk 0:02:59.9]}
2... d5 {[%clk 0:02:53]} 3. d3 {[%clk 0:03:00.1]} 3... g6 {[%clk 0:02:50.4]} 4.
e5 {[%clk 0:02:51.3]} 4... c5 {[%clk 0:02:48]} 5. c3 {[%clk 0:02:50]} 5... Nc6
{[%clk 0:02:47]} 6. d4 {[%clk 0:02:49.6]} 6... cxd4 {[%clk 0:02:47.2]} 7. cxd4
{[%clk 0:02:50.5]} 7... Bg4 {[%clk 0:02:47.3]} 8. Bb5 {[%clk 0:02:49]} 8... Rc8
{[%clk 0:02:44.3]} 9. Nbd2 {[%clk 0:02:39.8]} 9... Qb6 {[%clk 0:02:42]} 10.
Bxc6+ {[%clk 0:02:39.1]} 10... Rxc6 {[%clk 0:02:41.1]} 11. h3 {[%clk 0:02:39.3]}
11... Bxf3 {[%clk 0:02:40.9]} 12. Nxf3 {[%clk 0:02:40]} 12... e6 {[%clk
0:02:32.8]} 13. O-O {[%clk 0:02:38.9]} 13... Ne7 {[%clk 0:02:31.5]} 14. Bg5
{[%clk 0:02:25]} 14... Bg7 {[%clk 0:02:30.7]} 15. Bxe7 {[%clk 0:02:24.6]} 15...
Kxe7 {[%clk 0:02:31.6]} 16. Qd2 {[%clk 0:02:20.6]} 16... Rhc8 {[%clk 0:02:25.7]}
17. Rfc1 {[%clk 0:02:21]} 17... a5 {[%clk 0:02:17.9]} 18. h4 {[%clk 0:02:09.3]}
18... Qb4 {[%clk 0:02:02.1]} 19. Rxc6 {[%clk 0:01:51.9]} 19... Rxc6 {[%clk
0:01:54.1]} 20. Qxb4+ {[%clk 0:01:19.5]} 20... axb4 {[%clk 0:01:55]} 21. Ne1
{[%clk 0:01:19.4]} 21... Bh6 {[%clk 0:01:42.4]} 22. a3 {[%clk 0:01:06]} 22... b3
{[%clk 0:01:39.1]} 23. Rd1 {[%clk 0:00:58.6]} 23... Rc2 {[%clk 0:01:38.1]} 0-1

[Event "Early-Titled-Tuesday-Blitz-February-13-2024"]
[Site "Chess.com"]
[Date "2024.02.13"]
[Round "2"]
[White "Beca95"]
[Black "semchik73"]
[Result "1-0"]
[WhiteElo "2929"]
[BlackElo "2428"]
[TimeControl "180+1"]
[EndTime "8:17:05 PST"]
[Termination "Beca95 won by checkmate"]

1. e4 {[%clk 0:03:00.9]} 1... Nf6 {[%clk 0:02:59.8]} 2. d3 {[%clk 0:02:55.7]}
2... d5 {[%clk 0:02:59.7]} 3. e5 {[%clk 0:02:55.6]} 3... Nfd7 {[%clk 0:03:00.3]}
4. d4 {[%clk 0:02:55.8]} 4... e6 {[%clk 0:03:00.3]} 5. c3 {[%clk 0:02:54.7]}
5... c5 {[%clk 0:03:00.7]} 6. Bd3 {[%clk 0:02:52.6]} 6... Nc6 {[%clk 0:02:59.1]}
7. Ne2 {[%clk 0:02:52.3]} 7... Qb6 {[%clk 0:02:50.5]} 8. Bc2 {[%clk 0:02:52]}
8... cxd4 {[%clk 0:02:43.5]} 9. cxd4 {[%clk 0:02:51.7]} 9... Bb4+ {[%clk
0:02:40.6]} 10. Nbc3 {[%clk 0:02:51.2]} 10... O-O {[%clk 0:02:38.3]} 11. O-O
{[%clk 0:02:51]} 11... f6 {[%clk 0:02:32.7]} 12. Qd3 {[%clk 0:02:50.5]} 12... f5
{[%clk 0:02:22.4]} 13. Be3 {[%clk 0:02:48.2]} 13... Be7 {[%clk 0:02:16.2]} 14.
a3 {[%clk 0:02:47.8]} 14... Nd8 {[%clk 0:01:55.7]} 15. b4 {[%clk 0:02:46.7]}
15... Nf7 {[%clk 0:01:55.3]} 16. f4 {[%clk 0:02:42.8]} 16... a5 {[%clk
0:01:46.2]} 17. b5 {[%clk 0:02:41.8]} 17... Rd8 {[%clk 0:01:43.7]} 18. g4 {[%clk
0:02:38.9]} 18... g6 {[%clk 0:01:42.5]} 19. gxf5 {[%clk 0:02:37.2]} 19... gxf5
{[%clk 0:01:41.1]} 20. Kh1 {[%clk 0:02:37.7]} 20... Kh8 {[%clk 0:01:41.1]} 21.
Rf3 {[%clk 0:02:25]} 21... Nf8 {[%clk 0:01:40.2]} 22. Rg1 {[%clk 0:02:23.3]}
22... Bd7 {[%clk 0:01:37.5]} 23. Ng3 {[%clk 0:02:17.4]} 23... Ng6 {[%clk
0:01:35.8]} 24. Nxf5 {[%clk 0:02:15.9]} 24... exf5 {[%clk 0:01:33.7]} 25. Nxd5
{[%clk 0:02:16]} 25... Qxb5 {[%clk 0:01:30.9]} 26. Rxg6 {[%clk 0:02:12]} 26...
Qxd3 {[%clk 0:01:27.2]} 27. Bxd3 {[%clk 0:02:10.8]} 27... hxg6 {[%clk
0:01:15.7]} 28. Nxe7 {[%clk 0:02:09.2]} 28... Re8 {[%clk 0:01:11.8]} 29. Nxg6+
{[%clk 0:02:08]} 29... Kg7 {[%clk 0:01:12.1]} 30. Rg3 {[%clk 0:02:07.6]} 30...
Bc6+ {[%clk 0:01:12.4]} 31. Kg1 {[%clk 0:02:06]} 31... Nh6 {[%clk 0:01:04.7]}
32. d5 {[%clk 0:02:06.1]} 32... Ba4 {[%clk 0:00:53.9]} 33. Nh4+ {[%clk
0:02:03.7]} 33... Kf7 {[%clk 0:00:52.2]} 34. e6+ {[%clk 0:02:03.8]} 34... Ke7
{[%clk 0:00:49.4]} 35. Bc5+ {[%clk 0:02:03.9]} 35... Kf6 {[%clk 0:00:49.2]} 36.
Rg6# {[%clk 0:02:03.3]} 1-0

[Event "Early-Titled-Tuesday-Blitz-February-13-2024"]
[Site "Chess.com"]
[Date "2024.02.13"]
[Round "2"]
[White "Mikhail_Golubev"]
[Black "InitiatingASC"]
[Result "1/2-1/2"]
[WhiteElo "2693"]
[BlackElo "2411"]
[TimeControl "180+1"]
[EndTime "8:17:14 PST"]
[Termination "Game drawn by repetition"]

1. e4 {[%clk 0:03:00.9]} 1... c5 {[%clk 0:02:55.7]} 2. Nf3 {[%clk 0:03:00.4]}
2... Nc6 {[%clk 0:02:54.7]} 3. d4 {[%clk 0:02:56.8]} 3... cxd4 {[%clk
0:02:54.7]} 4. Nxd4 {[%clk 0:02:57.7]} 4... Nf6 {[%clk 0:02:55.1]} 5. Nc3 {[%clk
0:02:57.8]} 5... e5 {[%clk 0:02:55.8]} 6. Ndb5 {[%clk 0:02:57.6]} 6... h6 {[%clk
0:02:56.3]} 7. Nd5 {[%clk 0:02:47.4]} 7... Nxd5 {[%clk 0:02:54.9]} 8. exd5
{[%clk 0:02:47.5]} 8... a6 {[%clk 0:02:55.8]} 9. dxc6 {[%clk 0:01:56.9]} 9...
axb5 {[%clk 0:02:56.7]} 10. cxd7+ {[%clk 0:01:06.8]} 10... Bxd7 {[%clk
0:02:39.3]} 11. Bd3 {[%clk 0:01:03.4]} 11... Qc7 {[%clk 0:02:31.6]} 12. O-O
{[%clk 0:01:00.5]} 12... Bc5 {[%clk 0:02:21.7]} 13. Qh5 {[%clk 0:00:53.4]} 13...
O-O {[%clk 0:02:10.9]} 14. Bxh6 {[%clk 0:00:29.8]} 14... gxh6 {[%clk 0:01:41.1]}
15. Qxh6 {[%clk 0:00:28.7]} 15... f5 {[%clk 0:01:41.5]} 16. Qg6+ {[%clk
0:00:18.8]} 16... Kh8 {[%clk 0:01:41.6]} 17. Qh6+ {[%clk 0:00:19.1]} 17... Kg8
{[%clk 0:01:42]} 18. Qg6+ {[%clk 0:00:19.9]} 18... Kh8 {[%clk 0:01:42.5]} 19.
Qh6+ {[%clk 0:00:20.7]} 19... Kg8 {[%clk 0:01:43.1]} 1/2-1/2

[Event "Early-Titled-Tuesday-Blitz-February-13-2024"]
[Site "Chess.com"]
[Date "2024.02.13"]
[Round "2"]
[White "Macron20hTF1"]
[Black "Matibar"]
[Result "0-1"]
[WhiteElo "2550"]
[BlackElo "2775"]
[TimeControl "180+1"]
[EndTime "8:17:25 PST"]
[Termination "Matibar won by resignation"]

1. Nf3 {[%clk 0:03:00.9]} 1... Nf6 {[%clk 0:02:58.1]} 2. c4 {[%clk 0:03:00.9]}
2... g6 {[%clk 0:02:56.6]} 3. Nc3 {[%clk 0:03:01.5]} 3... Bg7 {[%clk 0:02:54.8]}
4. g3 {[%clk 0:03:02.1]} 4... O-O {[%clk 0:02:54.9]} 5. Bg2 {[%clk 0:03:02.7]}
5... d6 {[%clk 0:02:55.8]} 6. O-O {[%clk 0:03:02.9]} 6... c6 {[%clk 0:02:54.3]}
7. d4 {[%clk 0:02:59.4]} 7... Bf5 {[%clk 0:02:54.5]} 8. Re1 {[%clk 0:02:58.4]}
8... Ne4 {[%clk 0:02:53.1]} 9. Nh4 {[%clk 0:02:57]} 9... Nxc3 {[%clk 0:02:52.2]}
10. bxc3 {[%clk 0:02:57.6]} 10... Bd7 {[%clk 0:02:46]} 11. Rb1 {[%clk
0:02:54.6]} 11... Qc8 {[%clk 0:02:34.8]} 12. Qb3 {[%clk 0:02:45.9]} 12... b6
{[%clk 0:02:33.2]} 13. e4 {[%clk 0:02:42.3]} 13... Bh3 {[%clk 0:02:27]} 14. c5
{[%clk 0:02:27.9]} 14... Bxg2 {[%clk 0:02:19.9]} 15. cxb6 {[%clk 0:02:22.3]}
15... axb6 {[%clk 0:02:19.9]} 16. Nxg2 {[%clk 0:02:22.2]} 16... Nd7 {[%clk
0:02:19.6]} 17. Bg5 {[%clk 0:02:17.8]} 17... Re8 {[%clk 0:02:17.3]} 18. h4
{[%clk 0:02:05.5]} 18... Ra5 {[%clk 0:02:15]} 19. Re2 {[%clk 0:02:02.9]} 19...
Qa6 {[%clk 0:02:15]} 20. Reb2 {[%clk 0:01:59.9]} 20... Ra3 {[%clk 0:02:11.7]}
21. Qc2 {[%clk 0:02:00.1]} 21... b5 {[%clk 0:02:01.3]} 22. Bc1 {[%clk
0:01:53.4]} 22... Ra8 {[%clk 0:01:51.2]} 23. e5 {[%clk 0:01:18.8]} 23... dxe5
{[%clk 0:01:45.1]} 24. Qe4 {[%clk 0:01:13.7]} 24... exd4 {[%clk 0:01:34.6]} 25.
Qxe7 {[%clk 0:01:12.6]} 25... dxc3 {[%clk 0:01:20.7]} 26. Re2 {[%clk 0:01:11.7]}
26... Rxa2 {[%clk 0:01:21]} 0-1

[Event "Early-Titled-Tuesday-Blitz-February-13-2024"]
[Site "Chess.com"]
[Date "2024.02.13"]
[Round "2"]
[White "Msb2"]
[Black "Hilary46"]
[Result "1-0"]
[WhiteElo "3003"]
[BlackElo "2661"]
[TimeControl "180+1"]
[EndTime "8:17:29 PST"]
[Termination "Msb2 won by checkmate"]

1. d4 {[%clk 0:03:00.9]} 1... d5 {[%clk 0:02:58.2]} 2. c4 {[%clk 0:03:01.5]}
2... e6 {[%clk 0:02:55.8]} 3. Nc3 {[%clk 0:03:01.6]} 3... c6 {[%clk 0:02:55.1]}
4. Nf3 {[%clk 0:03:01.4]} 4... Nf6 {[%clk 0:02:55]} 5. Qc2 {[%clk 0:03:02.1]}
5... dxc4 {[%clk 0:02:54.4]} 6. e4 {[%clk 0:03:02.4]} 6... b5 {[%clk 0:02:54.7]}
7. Be2 {[%clk 0:03:03.1]} 7... Bb7 {[%clk 0:02:52.8]} 8. O-O {[%clk 0:03:03.5]}
8... Nbd7 {[%clk 0:02:53.4]} 9. b3 {[%clk 0:03:03.6]} 9... b4 {[%clk 0:02:52.3]}
10. e5 {[%clk 0:03:03.9]} 10... Nd5 {[%clk 0:02:33.2]} 11. Bg5 {[%clk
0:03:03.8]} 11... Qb6 {[%clk 0:01:59.2]} 12. Na4 {[%clk 0:02:54.2]} 12... Qa5
{[%clk 0:01:11.9]} 13. bxc4 {[%clk 0:02:52.8]} 13... N5b6 {[%clk 0:01:09.1]} 14.
Nxb6 {[%clk 0:02:53]} 14... axb6 {[%clk 0:01:09.6]} 15. Nd2 {[%clk 0:02:48.5]}
15... h6 {[%clk 0:01:08.8]} 16. Bh4 {[%clk 0:02:48.2]} 16... c5 {[%clk
0:01:05.5]} 17. d5 {[%clk 0:02:34.2]} 17... exd5 {[%clk 0:01:05.9]} 18. e6
{[%clk 0:02:35]} 18... Nf6 {[%clk 0:00:57.3]} 19. Bxf6 {[%clk 0:02:30.3]} 19...
gxf6 {[%clk 0:00:58.2]} 20. exf7+ {[%clk 0:02:31]} 20... Kxf7 {[%clk 0:00:58.5]}
21. Bh5+ {[%clk 0:02:31.5]} 21... Ke7 {[%clk 0:00:56.1]} 22. Rfe1+ {[%clk
0:02:29.7]} 22... Kd8 {[%clk 0:00:56.2]} 23. Qf5 {[%clk 0:02:29.3]} 23... Be7
{[%clk 0:00:55.2]} 24. Rxe7 {[%clk 0:02:27]} 24... Kxe7 {[%clk 0:00:55.5]} 25.
Re1+ {[%clk 0:02:27.5]} 25... Kd8 {[%clk 0:00:55.4]} 26. Qxf6+ {[%clk
0:02:23.1]} 26... Kc7 {[%clk 0:00:55.9]} 27. Qe5+ {[%clk 0:02:16.2]} 27... Kd7
{[%clk 0:00:49]} 28. Bg4+ {[%clk 0:02:10.1]} 28... Kc6 {[%clk 0:00:47.7]} 29.
cxd5+ {[%clk 0:01:55.5]} 29... Kb5 {[%clk 0:00:46.8]} 30. Be2+ {[%clk
0:01:56.2]} 30... Ka4 {[%clk 0:00:44.6]} 31. Bd1+ {[%clk 0:01:52.4]} 31... Kb5
{[%clk 0:00:34.1]} 32. Qe2+ {[%clk 0:01:51.3]} 32... c4 {[%clk 0:00:30.7]} 33.
Qxc4# {[%clk 0:01:52.2]} 1-0

[Event "Early-Titled-Tuesday-Blitz-February-13-2024"]
[Site "Chess.com"]
[Date "2024.02.13"]
[Round "2"]
[White "arturdailima"]
[Black "ChessSkool"]
[Result "0-1"]
[WhiteElo "2393"]
[BlackElo "2691"]
[TimeControl "180+1"]
[EndTime "8:17:30 PST"]
[Termination "ChessSkool won by resignation"]

1. d4 {[%clk 0:03:00.9]} 1... d5 {[%clk 0:02:35.8]} 2. c4 {[%clk 0:03:01]} 2...
e6 {[%clk 0:02:36]} 3. Nc3 {[%clk 0:03:01.1]} 3... Nf6 {[%clk 0:02:35.9]} 4.
cxd5 {[%clk 0:03:00.8]} 4... exd5 {[%clk 0:02:36.8]} 5. Nf3 {[%clk 0:03:01.4]}
5... c6 {[%clk 0:02:36.9]} 6. Bg5 {[%clk 0:02:54.4]} 6... h6 {[%clk 0:02:34.6]}
7. Bh4 {[%clk 0:02:54.2]} 7... Be7 {[%clk 0:02:34.3]} 8. e3 {[%clk 0:02:54.1]}
8... O-O {[%clk 0:02:34.8]} 9. Bd3 {[%clk 0:02:54.3]} 9... Re8 {[%clk
0:02:35.5]} 10. O-O {[%clk 0:02:54.4]} 10... Ne4 {[%clk 0:02:36.1]} 11. Bxe7
{[%clk 0:02:51.5]} 11... Qxe7 {[%clk 0:02:37]} 12. Qc2 {[%clk 0:02:47.6]} 12...
Bf5 {[%clk 0:02:30.9]} 13. Nd2 {[%clk 0:02:46.8]} 13... Nd7 {[%clk 0:02:20.9]}
14. Rae1 {[%clk 0:02:46.6]} 14... Ndf6 {[%clk 0:02:18.8]} 15. f3 {[%clk
0:02:44.5]} 15... Nxd2 {[%clk 0:02:17.6]} 16. Qxd2 {[%clk 0:02:45.4]} 16... Bxd3
{[%clk 0:02:16.1]} 17. Qxd3 {[%clk 0:02:46.3]} 17... Rad8 {[%clk 0:02:16.6]} 18.
a3 {[%clk 0:02:44]} 18... a5 {[%clk 0:02:12.4]} 19. Rf2 {[%clk 0:02:42.8]} 19...
Qd6 {[%clk 0:02:10.6]} 20. Na4 {[%clk 0:02:35.1]} 20... Re7 {[%clk 0:02:09.4]}
21. Nc5 {[%clk 0:02:33.6]} 21... b6 {[%clk 0:02:04.5]} 22. Na4 {[%clk
0:02:32.9]} 22... c5 {[%clk 0:02:04.3]} 23. dxc5 {[%clk 0:02:23.9]} 23... bxc5
{[%clk 0:02:05.2]} 24. Rc2 {[%clk 0:02:24.3]} 24... Nd7 {[%clk 0:01:22.3]} 25.
Rd1 {[%clk 0:02:21.5]} 25... Ne5 {[%clk 0:01:13.7]} 26. Qc3 {[%clk 0:02:14.5]}
26... Qg6 {[%clk 0:01:06.7]} 27. Kf2 {[%clk 0:02:08.1]} 27... d4 {[%clk
0:01:05.2]} 28. exd4 {[%clk 0:01:38.6]} 28... Rxd4 {[%clk 0:01:04.3]} 29. Re1
{[%clk 0:01:31.9]} 29... Nd3+ {[%clk 0:01:01.5]} 30. Qxd3 {[%clk 0:01:23.6]}
30... Qxd3 {[%clk 0:00:57.7]} 31. Rxe7 {[%clk 0:01:24.5]} 31... Qxc2+ {[%clk
0:00:57.5]} 0-1

[Event "Early-Titled-Tuesday-Blitz-February-13-2024"]
[Site "Chess.com"]
[Date "2024.02.13"]
[Round "2"]
[White "maxip32"]
[Black "leschebaza"]
[Result "1-0"]
[WhiteElo "2656"]
[BlackElo "2395"]
[TimeControl "180+1"]
[EndTime "8:17:31 PST"]
[Termination "maxip32 won by checkmate"]

1. e4 {[%clk 0:03:00.9]} 1... e6 {[%clk 0:02:58.9]} 2. Qe2 {[%clk 0:02:58.7]}
2... c5 {[%clk 0:02:58.6]} 3. f4 {[%clk 0:02:58.2]} 3... Nc6 {[%clk 0:02:59]} 4.
Nf3 {[%clk 0:02:59.1]} 4... d6 {[%clk 0:02:57.5]} 5. c3 {[%clk 0:02:59.3]} 5...
g6 {[%clk 0:02:57.3]} 6. d4 {[%clk 0:02:56]} 6... cxd4 {[%clk 0:02:57.4]} 7.
cxd4 {[%clk 0:02:56.9]} 7... Bg7 {[%clk 0:02:58]} 8. Be3 {[%clk 0:02:56.7]} 8...
Nge7 {[%clk 0:02:53.4]} 9. Nc3 {[%clk 0:02:56.3]} 9... d5 {[%clk 0:02:41.8]} 10.
e5 {[%clk 0:02:56]} 10... Nf5 {[%clk 0:02:42]} 11. Bf2 {[%clk 0:02:52.4]} 11...
h5 {[%clk 0:02:42]} 12. g3 {[%clk 0:02:52.4]} 12... Bd7 {[%clk 0:02:32.9]} 13.
Bg2 {[%clk 0:02:52]} 13... Rc8 {[%clk 0:02:30.6]} 14. O-O {[%clk 0:02:51.6]}
14... O-O {[%clk 0:02:30.5]} 15. Rfc1 {[%clk 0:02:48.5]} 15... Na5 {[%clk
0:02:24.1]} 16. h3 {[%clk 0:02:44.5]} 16... Nh6 {[%clk 0:02:24.1]} 17. Nd2
{[%clk 0:02:39.4]} 17... Qb6 {[%clk 0:02:04.3]} 18. Rab1 {[%clk 0:02:36.3]}
18... Nc4 {[%clk 0:01:53.5]} 19. Nf1 {[%clk 0:02:35.6]} 19... Qa5 {[%clk
0:01:44.2]} 20. g4 {[%clk 0:02:32.7]} 20... hxg4 {[%clk 0:01:43.8]} 21. hxg4
{[%clk 0:02:33.6]} 21... b5 {[%clk 0:01:33.7]} 22. a3 {[%clk 0:02:29.6]} 22...
b4 {[%clk 0:01:27.3]} 23. axb4 {[%clk 0:02:30.5]} 23... Qxb4 {[%clk 0:01:28.1]}
24. Ne3 {[%clk 0:02:20.9]} 24... Nxe3 {[%clk 0:01:24.4]} 25. Bxe3 {[%clk
0:02:21.8]} 25... Rb8 {[%clk 0:01:16.3]} 26. Bf3 {[%clk 0:02:20.9]} 26... Rfc8
{[%clk 0:01:15.5]} 27. Kg2 {[%clk 0:02:21]} 27... Qc4 {[%clk 0:01:07.6]} 28. Qd2
{[%clk 0:02:14.3]} 28... Qb3 {[%clk 0:00:48.4]} 29. Rh1 {[%clk 0:02:12.7]} 29...
Bf8 {[%clk 0:00:45.3]} 30. f5 {[%clk 0:02:08.2]} 30... exf5 {[%clk 0:00:34.5]}
31. Bxh6 {[%clk 0:02:07.6]} 31... Bb4 {[%clk 0:00:33.4]} 32. Bg7 {[%clk
0:02:02.4]} 32... Bxc3 {[%clk 0:00:22.7]} 33. Rh8+ {[%clk 0:02:00.2]} 33... Kxg7
{[%clk 0:00:22.5]} 34. Qh6# {[%clk 0:02:01.1]} 1-0

[Event "Early-Titled-Tuesday-Blitz-February-13-2024"]
[Site "Chess.com"]
[Date "2024.02.13"]
[Round "2"]
[White "shrek4life02"]
[Black "kibromNNN"]
[Result "1-0"]
[WhiteElo "2696"]
[BlackElo "1772"]
[TimeControl "180+1"]
[EndTime "8:17:33 PST"]
[Termination "shrek4life02 won by resignation"]

1. d4 {[%clk 0:03:00.9]} 1... Nf6 {[%clk 0:02:57.8]} 2. c4 {[%clk 0:03:01.2]}
2... e6 {[%clk 0:02:56.9]} 3. Nc3 {[%clk 0:02:57.5]} 3... d5 {[%clk 0:02:56.5]}
4. Bg5 {[%clk 0:02:49.1]} 4... dxc4 {[%clk 0:02:56]} 5. e3 {[%clk 0:02:47.2]}
5... a6 {[%clk 0:02:55.1]} 6. Bxc4 {[%clk 0:02:46.2]} 6... b5 {[%clk 0:02:54.1]}
7. Be2 {[%clk 0:02:46.4]} 7... Bb7 {[%clk 0:02:53.1]} 8. Bf3 {[%clk 0:02:46.8]}
8... Bxf3 {[%clk 0:02:47.5]} 9. Nxf3 {[%clk 0:02:47.7]} 9... Nbd7 {[%clk
0:02:44.2]} 10. O-O {[%clk 0:02:47.3]} 10... Be7 {[%clk 0:02:43.7]} 11. Qe2
{[%clk 0:02:43.4]} 11... c5 {[%clk 0:02:42.3]} 12. Rfd1 {[%clk 0:02:38.8]} 12...
cxd4 {[%clk 0:02:41.2]} 13. Nxd4 {[%clk 0:02:39.1]} 13... Rc8 {[%clk 0:02:35.6]}
14. Bxf6 {[%clk 0:02:35]} 14... Bxf6 {[%clk 0:02:34.1]} 15. Ne4 {[%clk
0:02:35.3]} 15... O-O {[%clk 0:02:21.3]} 16. a4 {[%clk 0:02:28.6]} 16... b4
{[%clk 0:02:15.4]} 17. Qxa6 {[%clk 0:02:27.4]} 17... Bxd4 {[%clk 0:02:01.2]} 18.
Rxd4 {[%clk 0:02:24.3]} 18... Qe7 {[%clk 0:01:59.7]} 19. Qb7 {[%clk 0:02:20]}
19... Rfd8 {[%clk 0:01:49.9]} 20. Rad1 {[%clk 0:02:19.3]} 20... h6 {[%clk
0:01:42.9]} 21. h3 {[%clk 0:02:17.6]} 21... b3 {[%clk 0:01:41.9]} 22. Rxd7
{[%clk 0:02:16.2]} 22... Rxd7 {[%clk 0:01:42.1]} 23. Qxd7 {[%clk 0:02:16.6]}
23... Qxd7 {[%clk 0:01:41.3]} 24. Rxd7 {[%clk 0:02:17.5]} 24... Rc2 {[%clk
0:01:39.8]} 25. Rd2 {[%clk 0:02:17.2]} 25... Rc1+ {[%clk 0:01:39.2]} 26. Kh2
{[%clk 0:02:16]} 26... Ra1 {[%clk 0:01:37.7]} 27. Nc5 {[%clk 0:02:14.6]} 27...
Ra2 {[%clk 0:01:35.8]} 28. Nxb3 {[%clk 0:02:14.2]} 28... Rxa4 {[%clk 0:01:34.7]}
29. Nd4 {[%clk 0:02:14.9]} 29... Rb4 {[%clk 0:01:33.4]} 30. Kg1 {[%clk
0:02:13.2]} 30... e5 {[%clk 0:01:31.5]} 31. Nf3 {[%clk 0:02:13]} 31... f6 {[%clk
0:01:31]} 32. Kf1 {[%clk 0:02:13.6]} 32... Kf7 {[%clk 0:01:29.6]} 33. Ke1 {[%clk
0:02:14.3]} 33... Kg6 {[%clk 0:01:28.5]} 34. Kd1 {[%clk 0:02:14.9]} 34... h5
{[%clk 0:01:24.7]} 35. Kc2 {[%clk 0:02:15.3]} 35... Kh6 {[%clk 0:01:22]} 36. Kc3
{[%clk 0:02:15.9]} 36... Rb7 {[%clk 0:01:17.6]} 37. b4 {[%clk 0:02:16.3]} 37...
Rc7+ {[%clk 0:01:16.7]} 38. Kb3 {[%clk 0:02:16.8]} 38... Rb7 {[%clk 0:01:13.5]}
39. Ne1 {[%clk 0:02:16]} 39... Kg5 {[%clk 0:01:12.4]} 40. Nd3 {[%clk 0:02:16.5]}
40... Kf5 {[%clk 0:01:11]} 41. Nc5 {[%clk 0:02:17]} 41... Rb6 {[%clk 0:01:07.8]}
42. Kc4 {[%clk 0:02:17.1]} 42... g5 {[%clk 0:01:05.2]} 43. b5 {[%clk 0:02:17.8]}
43... g4 {[%clk 0:01:03]} 44. hxg4+ {[%clk 0:02:18.1]} 44... hxg4 {[%clk
0:01:02.2]} 45. Nd7 {[%clk 0:02:19]} 45... Rb7 {[%clk 0:01:00.5]} 46. b6 {[%clk
0:02:19]} 46... Kg5 {[%clk 0:00:56.9]} 47. Kc5 {[%clk 0:02:19.4]} 47... f5
{[%clk 0:00:56]} 48. Kc6 {[%clk 0:02:19.5]} 1-0